fUST/lending_fUST_20250623
["ID","MTS","AMOUNT","RATE_DAILY","PERIOD"]
[367080936,1750651854983,-1216.58,0.00022191,2]
[367080939,1750651854992,-460.0,0.00022191,2]
[367080946,1750651855050,-460.0,0.00022191,2]
[367080948,1750651855064,-460.0,0.00022191,2]
[367080950,1750651855073,-460.0,0.00022191,2]
[367080952,1750651855082,-460.0,0.00022191,2]
[367080954,1750651855091,-554.74,0.00022191,2]
[367080956,1750651855101,-460.0,0.00022191,2]
[367080958,1750651855110,-460.0,0.00022191,2]
[367080960,1750651855118,-931.74,0.00022191,2]
[367080962,1750651855127,-460.0,0.00022191,2]
[367080964,1750651855137,-460.0,0.00022191,2]
[367080966,1750651855146,-517.24,0.00022191,2]
[367080968,1750651855155,-460.0,0.00022191,2]
[367080970,1750651855164,-547.35,0.00022191,2]
[367080972,1750651855173,-1380.89,0.00022191,2]
[367080974,1750651855182,-460.0,0.00022191,2]
[367080976,1750651855191,-1018.72,0.00022191,2]
[367080978,1750651855199,-404.85562647,0.00022191,2]
[367080980,1750651855209,-460.0,0.00022191,2]
[367080982,1750651855218,-460.0,0.00022191,2]
[367080984,1750651855226,-460.0,0.00022191,2]
[367080986,1750651855235,-460.0,0.00022191,2]
[367080988,1750651855244,-460.0,0.00022191,2]
[367080990,1750651855253,-460.0,0.00022191,2]
[367080992,1750651855262,-1187.17,0.00022191,2]
[367080994,1750651855271,-460.0,0.00022191,2]
[367080996,1750651855280,-415.69184283,0.00022191,2]
[367080998,1750651855289,-460.0,0.00022191,2]
[367081000,1750651855298,-460.0,0.00022191,2]
[367081002,1750651855307,-460.0,0.00022191,2]
[367081004,1750651855316,-460.0,0.00022191,2]
[367081006,1750651855325,-460.0,0.00022191,2]
[367081008,1750651855334,-888.88,0.00022191,2]
[367081010,1750651855343,-536.52,0.00022191,2]
[367081012,1750651855353,-460.0,0.00022191,2]
[367081013,1750651855361,-460.0,0.00022191,2]
[367081015,1750651855371,-1218.47,0.00022191,2]
[367081018,1750651855380,-460.0,0.00022191,2]
[367081020,1750651855389,-460.0,0.00022191,2]
[367081022,1750651855399,-1332.35,0.00022191,2]
[367081024,1750651855408,-460.0,0.00022191,2]
[367081025,1750651855417,-460.0,0.00022191,2]
[367081028,1750651855427,-897.74,0.00022191,2]
[367081029,1750651855435,-460.0,0.00022191,2]
[367081031,1750651855445,-806.33,0.00022191,2]
[367081033,1750651855454,-460.0,0.00022191,2]
[367081035,1750651855463,-344.63608748,0.00022191,2]
[367081037,1750651855473,-460.0,0.00022191,2]
[367081039,1750651855482,-248.99942428,0.00022191,2]
[367081041,1750651855491,-460.0,0.00022191,2]
[367081043,1750651855500,-460.0,0.00022191,2]
[367081045,1750651855510,-936.01,0.00022191,2]
[367081047,1750651855519,-460.0,0.00022191,2]
[367081049,1750651855528,-460.0,0.00022191,2]
[367081051,1750651855538,-460.0,0.00022191,2]
[367081053,1750651855547,-460.0,0.00022191,2]
[367081055,1750651855557,-460.0,0.00022191,2]
[367081057,1750651855566,-512.01797144,0.00022191,2]
[367081059,1750651855575,-460.0,0.00022191,2]
[367081061,1750651855584,-460.0,0.00022191,2]
[367081063,1750651855594,-460.0,0.00022191,2]
[367081065,1750651855603,-460.0,0.00022191,2]
[367081067,1750651855613,-711.79,0.00022191,2]
[367081069,1750651855622,-460.0,0.00022191,2]
[367081071,1750651855631,-460.0,0.00022191,2]
[367081073,1750651855640,-460.0,0.00022191,2]
[367081075,1750651855649,-460.0,0.00022191,2]
[367081077,1750651855658,-460.0,0.00022191,2]
[367081079,1750651855668,-460.0,0.00022191,2]
[367081081,1750651855677,-1655.04,0.00022191,2]
[367081083,1750651855686,-460.0,0.00022191,2]
[367081085,1750651855696,-460.0,0.00022191,2]
[367081087,1750651855705,-1504.96,0.00022191,2]
[367081089,1750651855716,-460.0,0.00022191,2]
[367081091,1750651855725,-460.0,0.00022191,2]
[367081093,1750651855734,-460.0,0.00022191,2]
[367081095,1750651855743,-460.0,0.00022191,2]
[367081097,1750651855752,-925.27,0.00022191,2]
[367081099,1750651855761,-460.0,0.00022191,2]
[367081101,1750651855770,-460.0,0.00022191,2]
[367081103,1750651855779,-460.0,0.00022191,2]
[367081105,1750651855788,-460.0,0.00022191,2]
[367081107,1750651855798,-460.0,0.00022191,2]
[367081109,1750651855807,-460.0,0.00022191,2]
[367081111,1750651855816,-460.0,0.00022191,2]
[367081113,1750651855825,-460.0,0.00022191,2]
[367081115,1750651855834,-1000.0,0.00022191,2]
[367081117,1750651855843,-582.13,0.00022191,2]
[367081119,1750651855852,-460.0,0.00022191,2]
[367081121,1750651855861,-460.0,0.00022191,2]
[367081123,1750651855870,-460.0,0.00022191,2]
[367081125,1750651855879,-571.16035282,0.00022191,2]
[367081127,1750651855889,-460.0,0.00022191,2]
[367081129,1750651855898,-151.0,0.00022191,7]
[367081131,1750651855907,-151.0,0.00022191,7]
[367081133,1750651855916,-304.43810238,0.00022191,2]
[367081135,1750651855924,-460.0,0.00022191,2]
[367081137,1750651855934,-460.0,0.00022191,2]
[367081139,1750651855943,-551.33074097,0.00022191,2]
[367081141,1750651855952,-460.0,0.00022191,2]
[367081143,1750651855961,-460.0,0.00022191,2]
[367081145,1750651855970,-460.0,0.00022191,2]
[367081147,1750651855979,-460.0,0.00022191,2]
[367081149,1750651855989,-460.0,0.00022191,2]
[367081151,1750651855998,-460.0,0.00022191,2]
[367081153,1750651856008,-460.0,0.00022191,2]
[367081155,1750651856018,-460.0,0.00022191,2]
[367081157,1750651856027,-463.17,0.00022191,2]
[367081159,1750651856036,-460.0,0.00022191,2]
[367081161,1750651856045,-460.0,0.00022191,2]
[367081163,1750651856055,-460.0,0.00022191,2]
[367081165,1750651856067,-460.0,0.00022191,2]
[367081166,1750651856076,-458.81128958,0.00022191,2]
[367081168,1750651856085,-1655.43,0.00022191,2]
[367081170,1750651856095,-460.0,0.00022191,2]
[367081172,1750651856105,-460.0,0.00022191,2]
[367081174,1750651856114,-486.31,0.00022191,2]
[367081176,1750651856123,-460.0,0.00022191,2]
[367081178,1750651856133,-460.0,0.00022191,2]
[367081180,1750651856142,-460.0,0.00022191,2]
[367081182,1750651856151,-460.0,0.00022191,2]
[367081184,1750651856160,-460.0,0.00022191,2]
[367081187,1750651856170,-521.88,0.00022191,2]
[367081189,1750651856179,-460.0,0.00022191,2]
[367081190,1750651856188,-460.0,0.00022191,2]
[367081192,1750651856198,-460.0,0.00022191,2]
[367081194,1750651856206,-460.0,0.00022191,2]
[367081196,1750651856216,-460.0,0.00022191,2]
[367081198,1750651856225,-460.0,0.00022191,2]
[367081200,1750651856234,-460.0,0.00022191,2]
[367081202,1750651856243,-460.0,0.00022191,2]
[367081204,1750651856253,-460.0,0.00022191,2]
[367081206,1750651856263,-460.0,0.00022191,2]
[367081208,1750651856272,-460.0,0.00022191,2]
[367081210,1750651856282,-1940.79,0.00022191,2]
[367081212,1750651856291,-1089.43,0.00022191,2]
[367081214,1750651856300,-460.0,0.00022191,2]
[367081216,1750651856310,-460.0,0.00022191,2]
[367081218,1750651856319,-460.0,0.00022191,2]
[367081221,1750651856329,-460.0,0.00022191,2]
[367081223,1750651856338,-2081.36,0.00022191,2]
[367081224,1750651856347,-460.0,0.00022191,2]
[367081227,1750651856357,-460.0,0.00022191,2]
[367081229,1750651856366,-151.0,0.00022191,7]
[367081231,1750651856375,-240.557826,0.00022191,7]
[367081233,1750651856384,-460.0,0.00022191,2]
[367081235,1750651856394,-151.0,0.00022191,7]
[367081236,1750651856403,-1104.19,0.00022191,2]
[367081238,1750651856412,-500.0,0.00022191,2]
[367081240,1750651856421,-151.0,0.00022191,7]
[367081243,1750651856430,-460.0,0.00022191,2]
[367081244,1750651856440,-460.0,0.00022191,2]
[367081247,1750651856449,-460.0,0.00022191,2]
[367081249,1750651856458,-1377.34,0.00022191,2]
[367081251,1750651856467,-460.0,0.00022191,2]
[367081253,1750651856477,-798.78,0.00022191,2]
[367081255,1750651856486,-460.0,0.00022191,2]
[367081257,1750651856496,-460.0,0.00022191,2]
[367081258,1750651856505,-460.0,0.00022191,2]
[367081260,1750651856514,-600.48,0.00022191,2]
[367081262,1750651856524,-460.0,0.00022191,2]
[367081265,1750651856533,-914.59,0.00022191,2]
[367081267,1750651856543,-460.0,0.00022191,2]
[367081269,1750651856554,-460.0,0.00022191,2]
[367081271,1750651856563,-460.0,0.00022191,2]
[367081273,1750651856572,-460.0,0.00022191,2]
[367081275,1750651856581,-460.0,0.00022191,2]
[367081277,1750651856591,-460.0,0.00022191,2]
[367081279,1750651856600,-460.0,0.00022191,2]
[367081280,1750651856610,-780.81,0.00022191,2]
[367081283,1750651856620,-460.0,0.00022191,2]
[367081285,1750651856630,-530.96,0.00022191,2]
[367081287,1750651856639,-414.16166827,0.00022191,2]
[367081289,1750651856649,-460.0,0.00022191,2]
[367081291,1750651856658,-3389.71915194,0.00022191,2]
[367085132,1750652267659,150.0,0.00021509,30]
[367085134,1750652555318,157.606812,0.00013699,2]
[367085136,1750652721339,-157.606812,0.00020187,2]
[367085137,1750652721362,-6.14124893,0.00020626,2]
[367085138,1750652849092,-659.85875107,0.00020626,2]
[367085139,1750652849113,-1200.0,0.00020777,2]
[367085140,1750652849134,-300.0,0.00020777,2]
[367085141,1750652849155,-300.0,0.00020777,2]
[367085142,1750652849176,-4972.68135235,0.00020778,2]
[367085143,1750652850503,151.79061,0.000247,120]
[367085144,1750652939739,12000.0,0.00024999,30]
[367085145,1750652946160,-300.0,0.00020777,2]
[367085146,1750652946181,-4240.13043693,0.00020778,2]
[367085147,1750652969091,-15215.22461268,0.00020778,2]
[367085148,1750652970100,-471.96359804,0.00020778,2]
[367085154,1750652990017,8000.0,0.00024999,30]
[367085176,1750653038553,-666.24099628,0.00021,10]
[367085177,1750653038562,-238.28979901,0.00021,2]
[367085178,1750653038572,-182.98456767,0.0002109,2]
[367085179,1750653038581,-500.0,0.0002119,2]
[367085180,1750653038590,-182.98456766,0.00021269,2]
[367085181,1750653038600,-182.98456766,0.00021447,2]
[367085182,1750653038610,-500.0,0.00021581,2]
[367085183,1750653038620,-182.98456766,0.00021626,2]
[367085184,1750653038629,-153.73254127,0.00021804,2]
[367085185,1750653038639,-300.0,0.00021899,2]
[367085186,1750653038649,-1200.0,0.00021899,2]
[367085187,1750653038658,-46745.4988493,0.000219,2]
[367085188,1750653038667,-207.4,0.00021904,2]
[367085189,1750653038677,-1052.98,0.00021907,10]
[367085190,1750653038689,-500.0,0.00021916,2]
[367085191,1750653038699,-414.97612568,0.00021916,2]
[367085192,1750653038709,-225.663,0.00021916,2]
[367085193,1750653038718,-184.66,0.00021916,2]
[367085194,1750653038729,-460.0,0.00021917,2]
[367085195,1750653038739,-460.0,0.00021917,2]
[367085197,1750653038748,-460.0,0.00021917,2]
[367085199,1750653038758,-283.66359152,0.00021917,2]
[367085201,1750653038767,-460.0,0.00021917,2]
[367085203,1750653038776,-460.0,0.00021917,2]
[367085204,1750653038786,-460.0,0.00021917,2]
[367085205,1750653038795,-460.0,0.00021917,2]
[367085206,1750653038804,-460.0,0.00021917,2]
[367085207,1750653038814,-460.0,0.00021917,2]
[367085208,1750653038823,-855.45,0.00021917,2]
[367085209,1750653038832,-460.0,0.00021917,2]
[367085210,1750653038842,-460.0,0.00021917,2]
[367085211,1750653038851,-460.0,0.00021917,2]
[367085212,1750653038860,-460.0,0.00021917,2]
[367085213,1750653038870,-461.84036779,0.00021917,2]
[367085214,1750653038879,-460.0,0.00021917,2]
[367085215,1750653038888,-460.0,0.00021917,2]
[367085216,1750653038897,-778.07,0.00021917,2]
[367085217,1750653038906,-460.0,0.00021917,2]
[367085218,1750653038916,-460.0,0.00021917,2]
[367085219,1750653038925,-460.0,0.00021917,2]
[367085220,1750653038934,-460.0,0.00021917,2]
[367085221,1750653038944,-460.0,0.00021917,2]
[367085222,1750653038953,-460.0,0.00021917,2]
[367085223,1750653038962,-460.0,0.00021917,2]
[367085224,1750653038972,-203.64455972,0.00021917,2]
[367085225,1750653038981,-460.0,0.00021917,2]
[367085226,1750653038990,-460.0,0.00021917,2]
[367085227,1750653038999,-414.49394333,0.00021917,2]
[367085228,1750653039009,-460.0,0.00021917,2]
[367085229,1750653039019,-487.66,0.00021917,2]
[367085230,1750653039028,-460.0,0.00021917,2]
[367085231,1750653039037,-190.84577573,0.00021917,2]
[367085232,1750653039047,-460.0,0.00021917,2]
[367085233,1750653039056,-460.0,0.00021917,2]
[367085234,1750653039066,-566.33596718,0.00021917,2]
[367085235,1750653039075,-460.0,0.00021917,2]
[367085236,1750653039085,-354.18868401,0.00021917,2]
[367085237,1750653039094,-460.0,0.00021917,2]
[367085238,1750653039105,-460.0,0.00021917,2]
[367085239,1750653039114,-460.0,0.00021917,2]
[367085240,1750653039123,-460.0,0.00021917,2]
[367085241,1750653039132,-460.0,0.00021917,2]
[367085242,1750653039142,-460.0,0.00021917,2]
[367085243,1750653039151,-460.0,0.00021917,2]
[367085244,1750653039160,-460.0,0.00021917,2]
[367085245,1750653039170,-460.0,0.00021917,2]
[367085246,1750653039179,-460.0,0.00021917,2]
[367085247,1750653039189,-460.0,0.00021917,2]
[367085248,1750653039198,-488.7,0.00021917,2]
[367085249,1750653039208,-460.0,0.00021917,2]
[367085250,1750653039217,-860.34,0.00021917,2]
[367085251,1750653039226,-460.0,0.00021917,2]
[367085252,1750653039235,-460.0,0.00021917,2]
[367085253,1750653039245,-460.0,0.00021917,2]
[367085254,1750653039254,-358.96505236,0.00021917,2]
[367085255,1750653039263,-405.80203136,0.00021917,2]
[367085256,1750653039272,-460.0,0.00021917,2]
[367085257,1750653039282,-460.0,0.00021917,2]
[367085258,1750653039291,-460.0,0.00021917,2]
[367085259,1750653039301,-536.52,0.00021917,2]
[367085260,1750653039310,-460.0,0.00021917,2]
[367085261,1750653039319,-559.79089011,0.00021917,2]
[367085262,1750653039329,-409.70245429,0.00021917,2]
[367085263,1750653039338,-460.0,0.00021917,2]
[367085264,1750653039347,-534.02,0.00021917,2]
[367085265,1750653039357,-460.0,0.00021917,2]
[367085266,1750653039366,-460.0,0.00021917,2]
[367085267,1750653039376,-460.0,0.00021917,2]
[367085268,1750653039385,-460.0,0.00021917,2]
[367085269,1750653039395,-403.78421503,0.00021917,2]
[367085270,1750653039405,-460.0,0.00021917,2]
[367085271,1750653039414,-460.0,0.00021917,2]
[367085272,1750653039423,-460.0,0.00021917,2]
[367085273,1750653039433,-460.0,0.00021917,2]
[367085274,1750653039442,-460.0,0.00021917,2]
[367085275,1750653039451,-460.0,0.00021917,2]
[367085276,1750653039460,-460.0,0.00021917,2]
[367085277,1750653039469,-460.0,0.00021917,2]
[367085278,1750653039479,-608.11266463,0.00021917,2]
[367085279,1750653039488,-460.0,0.00021917,2]
[367085280,1750653039497,-897.01,0.00021917,2]
[367085281,1750653039506,-878.45,0.00021917,2]
[367085282,1750653039516,-460.0,0.00021917,2]
[367085283,1750653039525,-460.0,0.00021917,2]
[367085284,1750653039535,-460.0,0.00021917,2]
[367085285,1750653039544,-165.15346909,0.00021917,2]
[367085286,1750653039553,-460.0,0.00021917,2]
[367085287,1750653039563,-460.0,0.00021917,2]
[367085288,1750653039573,-460.0,0.00021917,2]
[367085289,1750653039582,-460.0,0.00021917,2]
[367085290,1750653039591,-460.0,0.00021917,2]
[367085291,1750653039600,-460.0,0.00021917,2]
[367085292,1750653039610,-460.0,0.00021917,2]
[367085293,1750653039620,-460.0,0.00021917,2]
[367085294,1750653039630,-460.0,0.00021917,2]
[367085295,1750653039639,-460.0,0.00021917,2]
[367085296,1750653039649,-460.0,0.00021917,2]
[367085297,1750653039659,-408.7478443,0.00021917,2]
[367085298,1750653039668,-460.18590287,0.00021917,2]
[367085299,1750653039677,-460.0,0.00021917,2]
[367085300,1750653039687,-460.0,0.00021917,2]
[367085301,1750653039696,-460.0,0.00021917,2]
[367085302,1750653039708,-460.0,0.00021917,2]
[367085303,1750653039718,-460.0,0.00021917,2]
[367085304,1750653039729,-460.0,0.00021917,2]
[367085305,1750653039738,-460.0,0.00021917,2]
[367085306,1750653039748,-460.0,0.00021917,2]
[367085307,1750653039758,-460.14073392,0.00021917,2]
[367085308,1750653039767,-460.0,0.00021917,2]
[367085309,1750653039777,-460.0,0.00021917,2]
[367085310,1750653039787,-1859.93,0.00021917,2]
[367085311,1750653039796,-460.0,0.00021917,2]
[367085312,1750653039805,-460.0,0.00021917,2]
[367085313,1750653039815,-460.0,0.00021917,2]
[367085314,1750653039824,-498.57522429,0.00021917,2]
[367085315,1750653039834,-460.0,0.00021917,2]
[367085316,1750653039844,-460.0,0.00021917,2]
[367085317,1750653039853,-460.0,0.00021917,2]
[367085318,1750653039862,-460.0,0.00021917,2]
[367085319,1750653039872,-460.0,0.00021917,2]
[367085320,1750653039881,-460.0,0.00021917,2]
[367085321,1750653039891,-460.0,0.00021917,2]
[367085322,1750653039900,-686.91,0.00021917,2]
[367085323,1750653039910,-460.0,0.00021917,2]
[367085324,1750653039920,-460.0,0.00021917,2]
[367085325,1750653039931,-460.0,0.00021917,2]
[367085326,1750653039941,-1319.96,0.00021917,2]
[367085327,1750653039951,-460.0,0.00021917,2]
[367085328,1750653039960,-460.0,0.00021917,2]
[367085329,1750653039970,-460.0,0.00021917,2]
[367085330,1750653039980,-460.0,0.00021917,2]
[367085331,1750653039990,-460.12921962,0.00021917,2]
[367085332,1750653039999,-460.0,0.00021917,2]
[367085333,1750653040009,-460.0,0.00021917,2]
[367085335,1750653040018,-583.9813958,0.00021917,2]
[367085337,1750653040027,-460.0,0.00021917,2]
[367085339,1750653040037,-460.6142348,0.00021917,2]
[367085340,1750653040046,-460.0,0.00021917,2]
[367085342,1750653040055,-460.0,0.00021917,2]
[367085344,1750653040064,-460.0,0.00021917,2]
[367085346,1750653040073,-460.0,0.00021917,2]
[367085348,1750653040082,-522.95,0.00021917,2]
[367085355,1750653040092,-1041.1,0.00021917,2]
[367085356,1750653040302,-460.0,0.00021917,2]
[367085357,1750653040312,-460.0,0.00021917,2]
[367085358,1750653040321,-460.0,0.00021917,2]
[367085359,1750653040331,-460.0,0.00021917,2]
[367085360,1750653040341,-460.0,0.00021917,2]
[367085361,1750653040350,-460.0,0.00021917,2]
[367085362,1750653040359,-531.63,0.00021917,2]
[367085363,1750653040369,-460.0,0.00021917,2]
[367085364,1750653040378,-460.0,0.00021917,2]
[367085365,1750653040387,-460.0,0.00021917,2]
[367085367,1750653040397,-460.0,0.00021917,2]
[367085368,1750653040406,-1483.84,0.00021917,2]
[367085369,1750653040415,-500.0,0.00021917,2]
[367085370,1750653040424,-460.17716491,0.00021917,2]
[367085371,1750653040433,-500.0,0.00021917,2]
[367085372,1750653040443,-460.0,0.00021917,2]
[367085373,1750653040452,-500.0,0.00021917,2]
[367085374,1750653040461,-500.0,0.00021917,2]
[367085375,1750653040470,-500.0,0.00021917,2]
[367085376,1750653040479,-580.84,0.00021917,2]
[367085377,1750653040489,-575.46,0.00021917,2]
[367085378,1750653040498,-460.0,0.00021917,2]
[367085379,1750653040507,-460.0,0.00021917,2]
[367085380,1750653040516,-165.82536997,0.00021917,2]
[367085381,1750653040526,-3498.23,0.00021917,2]
[367085382,1750653040535,-513.0,0.00021917,2]
[367085383,1750653040544,-460.0,0.00021917,2]
[367085384,1750653040553,-508.84,0.00021917,2]
[367085385,1750653040563,-460.0,0.00021917,2]
[367085386,1750653040572,-738.61,0.00021917,2]
[367085387,1750653040581,-460.0,0.00021917,2]
[367085388,1750653040591,-460.0,0.00021917,2]
[367085389,1750653040600,-876.49,0.00021917,2]
[367085390,1750653040609,-1310.47,0.00021917,2]
[367085391,1750653040618,-1165.89,0.00021917,2]
[367085392,1750653040627,-460.0,0.00021917,2]
[367085393,1750653040637,-796.43,0.00021917,2]
[367085394,1750653040646,-500.0,0.00021917,2]
[367085395,1750653040655,-500.0,0.00021917,2]
[367085396,1750653040664,-500.0,0.00021917,2]
[367085397,1750653040673,-500.0,0.00021917,2]
[367085398,1750653040682,-500.0,0.00021917,2]
[367085399,1750653040696,-500.0,0.00021917,2]
[367085400,1750653040705,-892.92,0.00021917,2]
[367085401,1750653040713,-500.0,0.00021917,2]
[367085402,1750653040722,-500.0,0.00021917,2]
[367085403,1750653040732,-500.0,0.00021917,2]
[367085404,1750653040741,-500.0,0.00021917,2]
[367085405,1750653040750,-500.0,0.00021917,2]
[367085406,1750653040760,-500.0,0.00021917,2]
[367085407,1750653040770,-500.0,0.00021917,2]
[367085408,1750653040780,-460.0,0.00021917,2]
[367085409,1750653040789,-500.0,0.00021917,2]
[367085410,1750653040799,-500.0,0.00021917,2]
[367085411,1750653040808,-623.89917797,0.00021917,2]
[367085412,1750653040817,-460.0,0.00021917,2]
[367085413,1750653040826,-460.0,0.00021917,2]
[367085414,1750653040835,-460.0,0.00021917,2]
[367085415,1750653040845,-460.0,0.00021917,2]
[367085416,1750653040854,-460.0,0.00021917,2]
[367085417,1750653040863,-460.0,0.00021917,2]
[367085418,1750653040872,-460.0,0.00021917,2]
[367085419,1750653040882,-827.17,0.00021917,2]
[367085420,1750653040892,-460.0,0.00021917,2]
[367085421,1750653040902,-460.0,0.00021917,2]
[367085422,1750653040911,-460.0,0.00021917,2]
[367085423,1750653040920,-460.69810951,0.00021917,2]
[367085424,1750653040929,-460.0,0.00021917,2]
[367085425,1750653040939,-624.43,0.00021917,2]
[367085426,1750653040948,-460.0,0.00021917,2]
[367085427,1750653040958,-798.68,0.00021917,2]
[367085428,1750653040967,-512.45,0.00021917,2]
[367085429,1750653040977,-460.0,0.00021917,2]
[367085430,1750653040987,-460.0,0.00021917,2]
[367085431,1750653040996,-460.0,0.00021917,2]
[367085432,1750653041006,-460.0,0.00021917,2]
[367085433,1750653041016,-500.0,0.00021917,2]
[367085434,1750653041025,-460.0,0.00021917,2]
[367085435,1750653041035,-500.0,0.00021917,2]
[367085436,1750653041044,-606.94885796,0.00021917,2]
[367085437,1750653041054,-460.0,0.00021917,2]
[367085438,1750653041064,-460.0,0.00021917,2]
[367085439,1750653041073,-2363.73,0.00021917,2]
[367085440,1750653041083,-460.0,0.00021917,2]
[367085441,1750653041092,-460.0,0.00021917,2]
[367085442,1750653041101,-460.0,0.00021917,2]
[367085443,1750653041110,-460.0,0.00021917,2]
[367085444,1750653041120,-460.0,0.00021917,2]
[367085445,1750653041129,-1247.14,0.00021917,2]
[367085446,1750653041139,-460.0,0.00021917,2]
[367085447,1750653041148,-460.0,0.00021917,2]
[367085448,1750653041158,-460.0,0.00021917,2]
[367085449,1750653041167,-460.0,0.00021917,2]
[367085450,1750653041175,-460.0,0.00021917,2]
[367085451,1750653041185,-460.0,0.00021917,2]
[367085452,1750653041194,-361.00997491,0.00021917,2]
[367085453,1750653041204,-460.0,0.00021917,2]
[367085454,1750653041212,-507.23,0.00021917,2]
[367085455,1750653041222,-460.0,0.00021917,2]
[367085456,1750653041232,-460.0,0.00021917,2]
[367085457,1750653041241,-460.0,0.00021917,2]
[367085458,1750653041251,-460.0,0.00021917,2]
[367085459,1750653041260,-1012.64,0.00021917,2]
[367085460,1750653041270,-460.0,0.00021917,2]
[367085461,1750653041279,-435.87543375,0.00021917,2]
[367085462,1750653041288,-460.0,0.00021917,2]
[367085463,1750653041298,-461.05696799,0.00021917,2]
[367085464,1750653041307,-460.0,0.00021917,2]
[367085465,1750653041317,-460.0,0.00021917,2]
[367085466,1750653041326,-762.59,0.00021917,2]
[367085467,1750653041336,-460.0,0.00021917,2]
[367085468,1750653041345,-473.12,0.00021917,2]
[367085469,1750653041354,-359.0,0.00021917,2]
[367085470,1750653041363,-460.0,0.00021917,2]
[367085471,1750653041372,-460.0,0.00021917,2]
[367085472,1750653041382,-460.0,0.00021917,2]
[367085473,1750653041391,-460.0,0.00021917,2]
[367085474,1750653041401,-500.0,0.00021917,2]
[367085475,1750653041411,-460.29657592,0.00021917,2]
[367085476,1750653041420,-2016.55,0.00021917,2]
[367085477,1750653041429,-460.0,0.00021917,2]
[367085478,1750653041439,-460.0,0.00021917,2]
[367085479,1750653041448,-968.87,0.00021917,2]
[367085480,1750653041457,-460.0,0.00021917,2]
[367085481,1750653041467,-326.63546502,0.00021917,2]
[367085482,1750653041477,-500.0,0.00021917,2]
[367085483,1750653041487,-437.40834449,0.00021917,2]
[367085484,1750653041497,-460.0,0.00021917,2]
[367085485,1750653041507,-460.0,0.00021917,2]
[367085486,1750653041517,-460.48002916,0.00021917,2]
[367085487,1750653041527,-460.0,0.00021917,2]
[367085488,1750653041537,-460.0,0.00021917,2]
[367085489,1750653041546,-460.0,0.00021917,2]
[367085490,1750653041556,-460.0,0.00021917,2]
[367085491,1750653041566,-1874.56,0.00021917,2]
[367085492,1750653041575,-460.0,0.00021917,2]
[367085493,1750653041584,-460.0,0.00021917,2]
[367085494,1750653041593,-460.0,0.00021917,2]
[367085495,1750653041603,-460.0,0.00021917,2]
[367085496,1750653041613,-546.67,0.00021917,2]
[367085497,1750653041622,-460.0,0.00021917,2]
[367085498,1750653041632,-460.0,0.00021917,2]
[367085499,1750653041641,-460.0,0.00021917,2]
[367085500,1750653041650,-460.0,0.00021917,2]
[367085501,1750653041660,-460.0,0.00021917,2]